{"text_format":"1","workbook":"xlsx","n_sheets":10,"sheets":["Angaben","Lightline 70 A opal","Lightline 70 P opal","Lightline 70 P DID opal","Lightline 70 E opal","Lightline 70 A MLO","Lightline 70 P MLO","Lightline 70 P DID MLO","Lightline 70 E MLO","Tabelle2"],"not_rendered":{"charts":0,"images":1,"macros":1,"external_links":0,"defined_names":0,"comments":0,"pivot_tables":0},"unopened":[],"bounds":{"document_bytes":16777216,"sheet_cells":100000,"rows_first":2000,"rows_last":500,"rows_between":2000,"halvings":0,"cell_chars":16384,"cell_head_chars":4096},"cells_cut":0,"cells_raw":0,"read":"whole","date_system":"1900"}

{"sheet":"Angaben","index":0,"n_rows":23,"n_cols":4,"rows_kept":23,"cut":false,"hidden":false,"merged":[]}
["Lightline 70"]
[]
[]
[]
[]
[]
[]
["Bitte wählen Sie die Leuchte aus, zu der der Ausschreibungstext gewünscht ist"]
[]
["Leuchtentyp auswählen: ","Lightline 70 Anbau opal"]
[]
["Länge eingeben: ",1450,"mm"]
[]
[null,{"$f":"IF(B10=Tabelle2!A4,(Angaben!B12-35)/280,IF(Angaben!B10=Tabelle2!A8,(Angaben!B12-35)/280,(Angaben!B12-25)/280))","v":5.0892857142857144},{"$f":"ROUNDDOWN(B14,0)","v":5},{"$f":"ROUNDUP(B14,0)","v":6}]
[]
["Mögliche Längen:",{"$f":"IF(B10=Tabelle2!A4,Angaben!C14*280+25,IF(Angaben!B10=Tabelle2!A8,Angaben!C14*280+25,IF(Angaben!B10=Tabelle2!A3,Angaben!C14*280+50,IF(Angaben!B10=Tabelle2!A7,Angaben!C14*280+50,Angaben!C14*280+15))))","v":1415},"mm  *",1]
[null,{"$f":"IF(B10=Tabelle2!A4,Angaben!D14*280+25,IF(Angaben!B10=Tabelle2!A8,Angaben!D14*280+25,IF(Angaben!B10=Tabelle2!A3,Angaben!D14*280+50,IF(Angaben!B10=Tabelle2!A7,Angaben!D14*280+50,Angaben!D14*280+15))))","v":1695},"mm  *",false]
[]
[null,"*BITTE LÄNGE AUSWÄHLEN"]
[]
[null,"Bitte gewünschten Text öffnen"]
[]
["Bei Fragen oder fehlenden Ausschreibungstexten schreiben Sie uns bitte an:",null,null,"info@kotzolt.de"]

{"sheet":"Lightline 70 A opal","index":1,"n_rows":31,"n_cols":7,"rows_kept":31,"cut":false,"hidden":true,"merged":[]}
[]
[]
[]
[]
[]
["Ausschreibungstext"]
["Lightline 70 Anbau opal"]
[]
["Anbauleuchte mit LED ",null,null,{"$f":"(F9-15)/280*1100","v":5500},"lm",{"$f":"IF(A7=Angaben!B10,IF(Angaben!D16=1,Angaben!B16,IF(Angaben!D16=2,Angaben!B17)))","v":1415},"mm"]
["Leuchtenkörper aus Aluminiumprofil"]
["pulverbeschichtet in Weiß, Schwarz oder Titansilber"]
["Lichtaustritt mit Profil-Abdeckung opal diffus PMMA"]
["Einzelleuchte. Treiber in Leuchtenkörper integriert. "]
["Nach Ökodesign Richtline sind alle Komponenten einzeln austauschbar"]
["LED Module auf separater Trägerarmatur."]
[]
["Abmessung",null,{"$f":"F9","v":1415},"x 70 x 72","mm","(L x B x H)"]
["Leuchtmittel",null,"LED-Lumenstrom",null,{"$f":"D9","v":5500},"lm"]
[null,null,"Leuchten-Lumenstrom",null,{"$f":"ROUND(E18*0.658,0)","v":3619},"lm"]
[null,null,"Anschlussleistung ca. ",null,{"$f":"E18/1100*6.8","v":34},"Watt"]
[null,null,"Effizienz ca. 110lm/W"]
[null,null,"Farbwiedergabeindex > 80 (optional > 90)"]
[null,null,"Lebensdauer L80/B10/60000h"]
[null,null,"Flickerfrei Pst < 0,5 - SVM < 0,5 und Zhaga konform"]
["Farbtemperatur:",null,4000,"K","(optional 3000 K)"]
["Betriebsgerät",null,"DALI dimmbar (optional schaltbar)"]
["Schutzart: ",null,"IP 20"]
["Montageart: ",null,"Deckenanbau"]
[]
["Fabrikat ",null,"Kotzolt"]
["Typ",null,"Lightline 70 A LED opal",null,{"$f":"D9","v":5500},"lm"]

{"sheet":"Lightline 70 P opal","index":2,"n_rows":34,"n_cols":7,"rows_kept":34,"cut":false,"hidden":true,"merged":[]}
[]
[]
[]
[]
[]
["Ausschreibungstext"]
["Lightline 70 Pendel opal"]
[]
["Pendelleuchte mit LED ",null,null,{"$f":"(F9-15)/280*1100","v":-58.928571428571423},"lm",{"$f":"IF(A7=Angaben!B10,IF(Angaben!D16=1,Angaben!B16,IF(Angaben!D16=2,Angaben!B17)))","v":false},"mm"]
["Leuchtenkörper aus Aluminiumprofil"]
["pulverbeschichtet in Weiß, Schwarz oder Titansilber"]
["Lichtaustritt mit Profil-Abdeckung opal diffus PMMA"]
["Einzelleuchte. Treiber in Leuchtenkörper integriert. "]
["inkl. Y-Abhängung mit Schnellabhänger, Stahlseile 1,0 Meter"]
["transparente Zuleitung 5x0,75mm² (schaltbar: 3x0,75mm²)"]
["und quadratischer Baldachin"]
["Nach Ökodesign Richtline sind alle Komponenten einzeln austauschbar"]
["LED Module auf separater Trägerarmatur."]
[]
["Abmessung",null,{"$f":"F9","v":false},"x 70 x 72","mm","(L x B x H)"]
["Leuchtmittel",null,"LED-Lumenstrom",null,{"$f":"D9","v":-58.928571428571423},"lm"]
[null,null,"Leuchten-Lumenstrom",null,{"$f":"ROUND(E21*0.658,0)","v":-39},"lm"]
[null,null,"Anschlussleistung ca. ",null,{"$f":"E21/1100*6.8","v":-0.36428571428571427},"Watt"]
[null,null,"Effizienz ca. 110lm/W"]
[null,null,"Farbwiedergabeindex > 80 (optional > 90)"]
[null,null,"Lebensdauer L80/B10/60000h"]
[null,null,"Flickerfrei Pst < 0,5 - SVM < 0,5 und Zhaga konform"]
["Farbtemperatur:",null,4000,"K","(optional 3000 K)"]
["Betriebsgerät",null,"DALI dimmbar (optional schaltbar)"]
["Schutzart: ",null,"IP 20"]
["Montageart: ",null,"Pendelmontage"]
[]
["Fabrikat ",null,"Kotzolt"]
["Typ",null,"Lightline 70 P LED opal",null,{"$f":"D9","v":-58.928571428571423},"lm"]

{"sheet":"Lightline 70 P DID opal","index":3,"n_rows":34,"n_cols":7,"rows_kept":34,"cut":false,"hidden":true,"merged":[]}
[]
[]
[]
[]
[]
["Ausschreibungstext"]
["Lightline 70 Pendel DID opal"]
[]
["Pendelleuchte mit LED ",null,null,{"$f":"(F9-50)/280*2200","v":-392.85714285714289},"lm",{"$f":"IF(A7=Angaben!B10,IF(Angaben!D16=1,Angaben!B16,IF(Angaben!D16=2,Angaben!B17)))","v":false},"mm"]
["Leuchtenkörper aus Aluminiumprofil"]
["pulverbeschichtet in Weiß, Schwarz oder Titansilber"]
["Lichtaustritt mit Profil-Abdeckung opal diffus PMMA"]
["Einzelleuchte. Treiber in Leuchtenkörper integriert. "]
["inkl. Stahlseile 1,0 Meter"]
["transparente Zuleitung 5x0,75mm² (schaltbar: 3x0,75mm²)"]
["und quadratischer Baldachin"]
["Nach Ökodesign Richtline sind alle Komponenten einzeln austauschbar"]
["LED Module auf separater Trägerarmatur."]
[]
["Abmessung",null,{"$f":"F9","v":false},"x 70 x 72","mm","(L x B x H)"]
["Leuchtmittel",null,"LED-Lumenstrom",null,{"$f":"D9","v":-392.85714285714289},"lm"]
[null,null,"Leuchten-Lumenstrom",null,{"$f":"ROUND(E21*0.814,0)","v":-320},"lm"]
[null,null,"Anschlussleistung ca. ",null,{"$f":"E21/1100*6.8","v":-2.4285714285714284},"Watt"]
[null,null,"Effizienz ca. 138lm/W"]
[null,null,"Farbwiedergabeindex > 80 (optional > 90)"]
[null,null,"Lebensdauer L80/B10/60000h"]
[null,null,"Flickerfrei Pst < 0,5 - SVM < 0,5 und Zhaga konform"]
["Farbtemperatur:",null,4000,"K","(optional 3000 K)"]
["Betriebsgerät",null,"DALI dimmbar (optional schaltbar)"]
["Schutzart: ",null,"IP 20"]
["Montageart: ",null,"Pendelmontage"]
[]
["Fabrikat ",null,"Kotzolt"]
["Typ",null,"Lightline 70 P DID LED opal",null,{"$f":"D9","v":-392.85714285714289},"lm"]

{"sheet":"Lightline 70 E opal","index":4,"n_rows":31,"n_cols":7,"rows_kept":31,"cut":false,"hidden":true,"merged":[]}
[]
[]
[]
[]
[]
["Ausschreibungstext"]
["Lightline 70 Einbau opal"]
[]
["Einbauleuchte mit LED ",null,null,{"$f":"(F9-25)/280*1100","v":-98.214285714285722},"lm",{"$f":"IF(A7=Angaben!B10,IF(Angaben!D16=1,Angaben!B16,IF(Angaben!D16=2,Angaben!B17)))","v":false},"mm"]
["Leuchtenkörper aus Aluminiumprofil eloxiert, "]
["pulverbeschichtet in Weiß, Schwarz oder Titansilber"]
["Lichtaustritt mit Profil-Abdeckung opal diffus PMMA"]
["Einzelleuchte. Treiber in Leuchtenkörper integriert. "]
["Nach Ökodesign Richtline sind alle Komponenten einzeln austauschbar"]
["LED Module auf separater Trägerarmatur."]
[]
["Abmessung",null,{"$f":"F9","v":false},"x 88 x 72","mm","(L x B x H)"]
["Leuchtmittel",null,"LED-Lumenstrom",null,{"$f":"D9","v":-98.214285714285722},"lm"]
[null,null,"Leuchten-Lumenstrom",null,{"$f":"ROUND(E18*0.658,0)","v":-65},"lm"]
[null,null,"Anschlussleistung ca. ",null,{"$f":"E18/1100*6.8","v":-0.6071428571428571},"Watt"]
[null,null,"Effizienz ca. 110lm/W"]
[null,null,"Farbwiedergabeindex > 80 (optional > 90)"]
[null,null,"Lebensdauer L80/B10/60000h"]
[null,null,"Flickerfrei Pst < 0,5 - SVM < 0,5 und Zhaga konform"]
["Farbtemperatur:",null,4000,"K","(optional 3000 K)"]
["Betriebsgerät",null,"DALI dimmbar (optional schaltbar)"]
["Schutzart: ",null,"IP 20"]
["Montageart: ",null,"Einbaumontage"]
[]
["Fabrikat ",null,"Kotzolt"]
["Typ",null,"Lightline 70 E LED opal",null,{"$f":"D9","v":-98.214285714285722},"lm"]

{"sheet":"Lightline 70 A MLO","index":5,"n_rows":33,"n_cols":7,"rows_kept":33,"cut":false,"hidden":true,"merged":[]}
[]
[]
[]
[]
[]
["Ausschreibungstext"]
["Lightline 70 Anbau MLO"]
[]
["Anbauleuchte mit LED ",null,null,{"$f":"(F9-15)/280*1100","v":-58.928571428571423},"lm",{"$f":"IF(A7=Angaben!B10,IF(Angaben!D16=1,Angaben!B16,IF(Angaben!D16=2,Angaben!B17)))","v":false},"mm"]
["Leuchtenkörper aus Aluminiumprofil"]
["pulverbeschichtet in Weiß, Schwarz oder Titansilber"]
["Lichtaustritt mit Profil-Abdeckung MLO (Multi-Layer-Optik)"]
["Klare Abdeckung mit Mikroprismenscheibe und zusätzlicher Streuscheibe"]
["für eine blendfreie Lichtverteilung"]
["Einzelleuchte. Treiber in Leuchtenkörper integriert. "]
["Nach Ökodesign Richtline sind alle Komponenten einzeln austauschbar"]
["LED Module auf separater Trägerarmatur."]
[]
["Abmessung",null,{"$f":"F9","v":false},"x 70 x 72","mm","(L x B x H)"]
["Leuchtmittel",null,"LED-Lumenstrom",null,{"$f":"D9","v":-58.928571428571423},"lm"]
[null,null,"Leuchten-Lumenstrom",null,{"$f":"ROUND(E20*0.65,0)","v":-38},"lm"]
[null,null,"Anschlussleistung ca. ",null,{"$f":"E20/1100*6.8","v":-0.36428571428571427},"Watt"]
[null,null,"Effizienz ca. 108 lm/W"]
[null,null,"Farbwiedergabeindex > 80 (optional > 90)"]
[null,null,"Lebensdauer L80/B10/60000h"]
[null,null,"Flickerfrei Pst < 0,5 - SVM < 0,5 und Zhaga konform"]
["Farbtemperatur:",null,4000,"K","(optional 3000 K)"]
["Betriebsgerät",null,"DALI dimmbar (optional schaltbar)"]
["Schutzart: ",null,"IP 20"]
["Montageart: ",null,"Deckenanbau"]
[]
["Fabrikat ",null,"Kotzolt"]
["Typ",null,"Lightline 70 A LED MLO",null,{"$f":"D9","v":-58.928571428571423},"lm"]

{"sheet":"Lightline 70 P MLO","index":6,"n_rows":36,"n_cols":7,"rows_kept":36,"cut":false,"hidden":true,"merged":[]}
[]
[]
[]
[]
[]
["Ausschreibungstext"]
["Lightline 70 Pendel MLO"]
[]
["Pendelleuchte mit LED ",null,null,{"$f":"(F9-15)/280*1100","v":-58.928571428571423},"lm",{"$f":"IF(A7=Angaben!B10,IF(Angaben!D16=1,Angaben!B16,IF(Angaben!D16=2,Angaben!B17)))","v":false},"mm"]
["Leuchtenkörper aus Aluminiumprofil"]
["pulverbeschichtet in Weiß, Schwarz oder Titansilber"]
["Lichtaustritt mit Profil-Abdeckung MLO (Multi-Layer-Optik)"]
["Klare Abdeckung mit Mikroprismenscheibe und zusätzlicher Streuscheibe"]
["für eine blendfreie Lichtverteilung"]
["Einzelleuchte. Treiber in Leuchtenkörper integriert. "]
["inkl. Y-Abhängung mit Schnellabhänger, Stahlseile 1,0 Meter"]
["transparente Zuleitung 5x0,75mm² (schaltbar: 3x0,75mm²)"]
["und quadratischer Baldachin"]
["Nach Ökodesign Richtline sind alle Komponenten einzeln austauschbar"]
["LED Module auf separater Trägerarmatur."]
[]
["Abmessung",null,{"$f":"F9","v":false},"x 70 x 72","mm","(L x B x H)"]
["Leuchtmittel",null,"LED-Lumenstrom",null,{"$f":"D9","v":-58.928571428571423},"lm"]
[null,null,"Leuchten-Lumenstrom",null,{"$f":"ROUND(E23*0.65,0)","v":-38},"lm"]
[null,null,"Anschlussleistung ca. ",null,{"$f":"E23/1100*6.8","v":-0.36428571428571427},"Watt"]
[null,null,"Effizienz ca. 108 lm/W"]
[null,null,"Farbwiedergabeindex > 80 (optional > 90)"]
[null,null,"Lebensdauer L80/B10/60000h"]
[null,null,"Flickerfrei Pst < 0,5 - SVM < 0,5 und Zhaga konform"]
["Farbtemperatur:",null,4000,"K","(optional 3000 K)"]
["Betriebsgerät",null,"DALI dimmbar (optional schaltbar)"]
["Schutzart: ",null,"IP 20"]
["Montageart: ",null,"Pendelmontage"]
[]
["Fabrikat ",null,"Kotzolt"]
["Typ",null,"Lightline 70 P LED MLO",null,{"$f":"D9","v":-58.928571428571423},"lm"]

{"sheet":"Lightline 70 P DID MLO","index":7,"n_rows":39,"n_cols":7,"rows_kept":39,"cut":false,"hidden":true,"merged":[]}
[]
[]
[]
[]
[]
["Ausschreibungstext"]
["Lightline 70 Pendel DID MLO"]
[]
["Pendelleuchte mit LED ",null,null,{"$f":"(F9-50)/280*2200","v":-392.85714285714289},"lm",{"$f":"IF(A7=Angaben!B10,IF(Angaben!D16=1,Angaben!B16,IF(Angaben!D16=2,Angaben!B17)))","v":false},"mm"]
["Leuchtenkörper aus Aluminiumprofil"]
["pulverbeschichtet in Weiß, Schwarz oder Titansilber"]
["direkter Lichtaustritt mit Profil-Abdeckung MLO (Multi-Layer-Optik)"]
["Klare Abdeckung mit Mikroprismenscheibe und zusätzlicher Streuscheibe"]
["für eine blendfreie Lichtverteilung"]
["indirekter Lichtaustritt mit PC-Scheibe klar      "]
["Einzelleuchte. Treiber in Leuchtenkörper integriert. "]
["inkl. Stahlseile 1,0 Meter"]
["transparente Zuleitung 5x0,75mm² (schaltbar: 3x0,75mm²)"]
["und quadratischer Baldachin"]
["Nach Ökodesign Richtline sind alle Komponenten einzeln austauschbar"]
["LED Module auf separater Trägerarmatur."]
[]
["Abmessung:",null,{"$f":"F9","v":false},"x 70 x 72","mm","(L x B x H)"]
["Leuchtmittel:",null,"LED-Lumenstrom",null,{"$f":"D9","v":-392.85714285714289},"lm"]
[null,null,"Leuchten-Lumenstrom",null,{"$f":"ROUND(E24*0.811,0)","v":-319},"lm"]
[null,null,"Bei Lichtverteilung direkt 30% / indirekt 70%"]
[null,null,"Anschlussleistung ca. ",null,{"$f":"E24/1100*6.8","v":-2.4285714285714284},"Watt"]
[null,null,"Effizienz ca. 122 lm/W"]
[null,null,"Farbwiedergabeindex > 80 (optional > 90)"]
[null,null,"Lebensdauer L80/B10/60000h"]
[null,null,"Flickerfrei Pst < 0,5 - SVM < 0,5 und Zhaga konform"]
["Lichtverteilung:",null,"direkt 30% / indirekt 70% (ist frei wählbar)"]
["Farbtemperatur:",null,4000,"K","(optional 3000 K)"]
["Betriebsgerät",null,"DALI dimmbar (optional schaltbar)"]
["Schutzart: ",null,"IP 20"]
["Montageart: ",null,"Pendelmontage"]
[]
["Fabrikat ",null,"Kotzolt"]
["Typ",null,"Lightline 70 P LED MLO",null,{"$f":"D9","v":-392.85714285714289},"lm"]

{"sheet":"Lightline 70 E MLO","index":8,"n_rows":33,"n_cols":7,"rows_kept":33,"cut":false,"hidden":true,"merged":[]}
[]
[]
[]
[]
[]
["Ausschreibungstext"]
["Lightline 70 Einbau MLO"]
[]
["Einbauleuchte mit LED ",null,null,{"$f":"(F9-25)/280*1100","v":-98.214285714285722},"lm",{"$f":"IF(A7=Angaben!B10,IF(Angaben!D16=1,Angaben!B16,IF(Angaben!D16=2,Angaben!B17)))","v":false},"mm"]
["Leuchtenkörper aus Aluminiumprofil"]
["pulverbeschichtet in Weiß, Schwarz oder Titansilber"]
["Lichtaustritt mit Profil-Abdeckung MLO (Multi-Layer-Optik)"]
["Klare Abdeckung mit Mikroprismenscheibe und zusätzlicher Streuscheibe"]
["für eine blendfreie Lichtverteilung"]
["Einzelleuchte. Treiber in Leuchtenkörper integriert. "]
["Nach Ökodesign Richtline sind alle Komponenten einzeln austauschbar"]
["LED Module auf separater Trägerarmatur."]
[]
["Abmessung",null,{"$f":"F9","v":false},"x 88 x 72","mm","(L x B x H)"]
["Leuchtmittel",null,"LED-Lumenstrom",null,{"$f":"D9","v":-98.214285714285722},"lm"]
[null,null,"Leuchten-Lumenstrom",null,{"$f":"ROUND(E20*0.65,0)","v":-64},"lm"]
[null,null,"Anschlussleistung ca. ",null,{"$f":"E20/1100*6.8","v":-0.6071428571428571},"Watt"]
[null,null,"Effizienz ca. 108 lm/W"]
[null,null,"Farbwiedergabeindex > 80 (optional > 90)"]
[null,null,"Lebensdauer L80/B10/60000h"]
[null,null,"Flickerfrei Pst < 0,5 - SVM < 0,5 und Zhaga konform"]
["Farbtemperatur:",null,4000,"K","(optional 3000 K)"]
["Betriebsgerät",null,"DALI dimmbar (optional schaltbar)"]
["Schutzart: ",null,"IP 20"]
["Montageart: ",null,"Einbaumontage"]
[]
["Fabrikat ",null,"Kotzolt"]
["Typ",null,"Lightline 70 E LED MLO",null,{"$f":"D9","v":-98.214285714285722},"lm"]

{"sheet":"Tabelle2","index":9,"n_rows":8,"n_cols":1,"rows_kept":8,"cut":false,"hidden":true,"merged":[]}
["Lightline 70 Anbau opal"]
["Lightline 70 Pendel opal"]
["Lightline 70 Pendel DID opal"]
["Lightline 70 Einbau opal"]
["Lightline 70 Anbau MLO"]
["Lightline 70 Pendel MLO"]
["Lightline 70 Pendel DID MLO"]
["Lightline 70 Einbau MLO"]